[Event "*** Titled Tuesday Blitz"]
[Site "Chess.com"]
[Date "2019.05.07"]
[Round "5"]
[White "tteshan"]
[Black "IMRosen"]
[Result "0-1"]
[WhiteElo "2301"]
[BlackElo "2387"]
[TimeControl "180+2"]
[EndTime "14:10:08 PDT"]
[Termination "IMRosen won by resignation"]

1. d4 {[%clk 0:02:57.7]} 1... Nf6 {[%clk 0:02:58.9]} 2. c4 {[%clk 0:02:57.8]}
2... e5 {[%clk 0:02:59.9]} 3. dxe5 {[%clk 0:02:58.7]} 3... Ng4 {[%clk
0:03:01.1]} 4. Nf3 {[%clk 0:02:59.4]} 4... Bc5 {[%clk 0:03:02.3]} 5. e3 {[%clk
0:03:00]} 5... Nc6 {[%clk 0:03:04.1]} 6. Qd5 {[%clk 0:02:58.9]} 6... Qe7 {[%clk
0:03:04.9]} 7. a3 {[%clk 0:02:57.7]} 7... a5 {[%clk 0:03:05.7]} 8. Bd2 {[%clk
0:02:55.8]} 8... Ngxe5 {[%clk 0:03:06.1]} 9. Nc3 {[%clk 0:02:54.6]} 9... Nxf3+
{[%clk 0:03:05.1]} 10. Qxf3 {[%clk 0:02:55.8]} 10... Ne5 {[%clk 0:03:05.6]} 11.
Qg3 {[%clk 0:02:53.2]} 11... O-O {[%clk 0:02:45]} 12. Nd5 {[%clk 0:02:52.9]}
12... Qd6 {[%clk 0:02:45.4]} 13. Be2 {[%clk 0:02:51.7]} 13... c6 {[%clk
0:02:39.9]} 14. Nc3 {[%clk 0:02:46.6]} 14... Nd3+ {[%clk 0:02:39]} 15. Bxd3
{[%clk 0:02:45]} 15... Qxd3 {[%clk 0:02:40.9]} 16. Qh4 {[%clk 0:02:28.2]} 16...
d5 {[%clk 0:02:34.1]} 17. cxd5 {[%clk 0:02:26.4]} 17... cxd5 {[%clk 0:02:24.3]}
18. Ne2 {[%clk 0:02:20.6]} 18... Bf5 {[%clk 0:02:16.4]} 19. Rc1 {[%clk
0:02:11.4]} 19... Rac8 {[%clk 0:02:14.3]} 20. Nf4 {[%clk 0:02:00.3]} 20... Qb5
{[%clk 0:01:26.5]} 21. Bc3 {[%clk 0:01:56.8]} 21... d4 {[%clk 0:01:20.4]} 22.
Bd2 {[%clk 0:01:32.1]} 22... dxe3 {[%clk 0:01:15.7]} 23. fxe3 {[%clk 0:01:28.8]}
23... Rfe8 {[%clk 0:01:10.2]} 24. Qf2 {[%clk 0:01:23]} 24... Bxe3 {[%clk
0:01:04.6]} 25. Qxe3 {[%clk 0:00:57.8]} 25... Rxc1+ {[%clk 0:00:34.4]} 26. Bxc1
{[%clk 0:00:55.8]} 26... Rxe3+ {[%clk 0:00:31.1]} 27. Bxe3 {[%clk 0:00:57.7]}
27... Qxb2 {[%clk 0:00:28.1]} 28. O-O {[%clk 0:00:58.1]} 28... Qxa3 {[%clk
0:00:26.6]} 29. Bb6 {[%clk 0:00:41.2]} 29... h6 {[%clk 0:00:21.6]} 30. Nd5
{[%clk 0:00:39.3]} 30... Be6 {[%clk 0:00:21.2]} 31. Nf4 {[%clk 0:00:34.1]} 31...
Qb4 {[%clk 0:00:21.4]} 32. Be3 {[%clk 0:00:32.2]} 32... Bc4 {[%clk 0:00:21.9]}
33. Rc1 {[%clk 0:00:29.1]} 33... b5 {[%clk 0:00:21.9]} 34. Kf2 {[%clk
0:00:28.9]} 34... a4 {[%clk 0:00:22.1]} 35. Rd1 {[%clk 0:00:20.7]} 35... a3
{[%clk 0:00:19.8]} 36. Rd8+ {[%clk 0:00:20.1]} 36... Kh7 {[%clk 0:00:20.4]} 37.
Ra8 {[%clk 0:00:20.1]} 37... Qb2+ {[%clk 0:00:19.4]} 38. Kg3 {[%clk 0:00:19.2]}
38... a2 {[%clk 0:00:21.3]} 39. Nh3 {[%clk 0:00:08.3]} 39... a1=Q {[%clk
0:00:19.5]} 40. Rxa1 {[%clk 0:00:10.2]} 40... Qxa1 {[%clk 0:00:21.4]} 41. Kh4
{[%clk 0:00:09.2]} 41... Qe5 {[%clk 0:00:17.6]} 42. Bf4 {[%clk 0:00:08.6]} 42...
g5+ {[%clk 0:00:16.2]} 43. Bxg5 {[%clk 0:00:06.5]} 43... hxg5+ {[%clk 0:00:17]}
44. Nxg5+ {[%clk 0:00:07.9]} 44... Kg6 {[%clk 0:00:16.2]} 45. Nf3 {[%clk
0:00:09.1]} 45... Qf4+ {[%clk 0:00:16.3]} 46. g4 {[%clk 0:00:06.9]} 46... Qxf3
{[%clk 0:00:15.2]} 47. g5 {[%clk 0:00:07.6]} 47... Be6 {[%clk 0:00:15.6]} 0-1

[Event "*** Titled Tuesday Blitz"]
[Site "Chess.com"]
[Date "2019.05.07"]
[Round "5"]
[White "novocane"]
[Black "Caisachess"]
[Result "1-0"]
[WhiteElo "2240"]
[BlackElo "2332"]
[TimeControl "180+2"]
[EndTime "14:10:08 PDT"]
[Termination "novocane won by checkmate"]

1. d4 {[%clk 0:03:01.9]} 1... Nf6 {[%clk 0:02:57.4]} 2. c4 {[%clk 0:03:02.8]}
2... e6 {[%clk 0:02:57.5]} 3. Nc3 {[%clk 0:03:03.9]} 3... Bb4 {[%clk 0:02:58.1]}
4. e3 {[%clk 0:03:04.9]} 4... O-O {[%clk 0:02:58.2]} 5. Ne2 {[%clk 0:03:05.9]}
5... d5 {[%clk 0:02:59.4]} 6. a3 {[%clk 0:03:06.6]} 6... Bd6 {[%clk 0:02:57.1]}
7. Nf4 {[%clk 0:03:02.5]} 7... c6 {[%clk 0:02:56.5]} 8. Bd3 {[%clk 0:03:01]}
8... Re8 {[%clk 0:02:50.4]} 9. O-O {[%clk 0:03:00.4]} 9... Bxf4 {[%clk
0:02:49.4]} 10. exf4 {[%clk 0:03:00.5]} 10... dxc4 {[%clk 0:02:50.7]} 11. Bxc4
{[%clk 0:03:01.4]} 11... b5 {[%clk 0:02:50.8]} 12. Ba2 {[%clk 0:02:59.6]} 12...
Bb7 {[%clk 0:02:51.6]} 13. Be3 {[%clk 0:02:51.3]} 13... Nbd7 {[%clk 0:02:51.9]}
14. Rc1 {[%clk 0:02:48.4]} 14... Nb6 {[%clk 0:02:50.6]} 15. Nb1 {[%clk
0:02:23.5]} 15... Qd6 {[%clk 0:02:43.5]} 16. Nd2 {[%clk 0:02:20.2]} 16... Nbd5
{[%clk 0:02:41.8]} 17. Qf3 {[%clk 0:01:56.9]} 17... Rac8 {[%clk 0:02:34.5]} 18.
Nb3 {[%clk 0:01:50.5]} 18... Nb6 {[%clk 0:01:55.9]} 19. Nc5 {[%clk 0:01:48.4]}
19... Rc7 {[%clk 0:01:49.9]} 20. h3 {[%clk 0:01:42.4]} 20... Nbd5 {[%clk
0:01:43.7]} 21. Rfe1 {[%clk 0:01:35.7]} 21... Bc8 {[%clk 0:01:39.3]} 22. Rc2
{[%clk 0:01:30.6]} 22... Nd7 {[%clk 0:01:37.6]} 23. Rec1 {[%clk 0:01:26.7]}
23... Nxc5 {[%clk 0:01:36.1]} 24. Rxc5 {[%clk 0:01:27]} 24... Bd7 {[%clk
0:01:36.1]} 25. Bb1 {[%clk 0:01:22.4]} 25... Rec8 {[%clk 0:01:31.2]} 26. Qe4
{[%clk 0:01:14.1]} 26... Nf6 {[%clk 0:01:26.1]} 27. Qe5 {[%clk 0:01:14.8]} 27...
Qe7 {[%clk 0:01:19.1]} 28. f5 {[%clk 0:01:10.1]} 28... Be8 {[%clk 0:00:59.1]}
29. fxe6 {[%clk 0:01:07.4]} 29... Qxe6 {[%clk 0:00:59.6]} 30. Qxe6 {[%clk
0:01:08.1]} 30... fxe6 {[%clk 0:01:01.5]} 31. Bg5 {[%clk 0:01:05.2]} 31... Nd5
{[%clk 0:00:59]} 32. Bd3 {[%clk 0:00:58.4]} 32... h6 {[%clk 0:00:50.7]} 33. Be3
{[%clk 0:00:58.3]} 33... Rb8 {[%clk 0:00:42.2]} 34. Be4 {[%clk 0:00:46.1]} 34...
Rcc8 {[%clk 0:00:39.3]} 35. b4 {[%clk 0:00:42.2]} 35... Kf7 {[%clk 0:00:39]} 36.
Bxd5 {[%clk 0:00:29.6]} 36... exd5 {[%clk 0:00:37.1]} 37. Bf4 {[%clk 0:00:30.7]}
37... Rb6 {[%clk 0:00:37]} 38. Be5 {[%clk 0:00:31.4]} 38... Ra6 {[%clk
0:00:37.5]} 39. R5c3 {[%clk 0:00:30.7]} 39... Bd7 {[%clk 0:00:37.2]} 40. Rf3+
{[%clk 0:00:31]} 40... Kg8 {[%clk 0:00:19.8]} 41. Rg3 {[%clk 0:00:29.6]} 41...
g5 {[%clk 0:00:20.9]} 42. h4 {[%clk 0:00:30.9]} 42... g4 {[%clk 0:00:22.1]} 43.
h5 {[%clk 0:00:31.6]} 43... Kf7 {[%clk 0:00:22.1]} 44. f3 {[%clk 0:00:24.2]}
44... Rg8 {[%clk 0:00:22.9]} 45. fxg4 {[%clk 0:00:23.7]} 45... Rxg4 {[%clk
0:00:23.4]} 46. Rf1+ {[%clk 0:00:24.4]} 46... Ke8 {[%clk 0:00:23.6]} 47. Bd6
{[%clk 0:00:17.3]} 47... Rxg3 {[%clk 0:00:24]} 48. Rf8# {[%clk 0:00:17.5]} 1-0

[Event "*** Titled Tuesday Blitz"]
[Site "Chess.com"]
[Date "2019.05.07"]
[Round "5"]
[White "NemtsevIgor"]
[Black "AliKa2810"]
[Result "0-1"]
[WhiteElo "2257"]
[BlackElo "2490"]
[TimeControl "180+2"]
[EndTime "14:10:17 PDT"]
[Termination "AliKa2810 won by resignation"]

1. d4 {[%clk 0:03:01.9]} 1... Nf6 {[%clk 0:03:00.3]} 2. Bf4 {[%clk 0:02:58.8]}
2... g6 {[%clk 0:03:01]} 3. e3 {[%clk 0:02:59.1]} 3... Bg7 {[%clk 0:03:02.6]} 4.
Nf3 {[%clk 0:03:00.3]} 4... O-O {[%clk 0:03:04.1]} 5. Be2 {[%clk 0:03:01.7]}
5... d6 {[%clk 0:03:04.8]} 6. O-O {[%clk 0:03:02.4]} 6... Nc6 {[%clk 0:03:00.7]}
7. Nc3 {[%clk 0:03:00.2]} 7... Nd7 {[%clk 0:02:58.4]} 8. e4 {[%clk 0:02:56]}
8... e5 {[%clk 0:02:56.5]} 9. Bg5 {[%clk 0:02:53.3]} 9... f6 {[%clk 0:02:55]}
10. Be3 {[%clk 0:02:53.7]} 10... f5 {[%clk 0:02:54.5]} 11. exf5 {[%clk
0:02:48.3]} 11... gxf5 {[%clk 0:02:54.5]} 12. dxe5 {[%clk 0:02:49.6]} 12...
Ndxe5 {[%clk 0:02:50.2]} 13. Nxe5 {[%clk 0:02:30.8]} 13... Nxe5 {[%clk
0:02:50.7]} 14. Nd5 {[%clk 0:02:28.4]} 14... Kh8 {[%clk 0:02:36.5]} 15. Nf4
{[%clk 0:02:21.8]} 15... Qh4 {[%clk 0:02:33.5]} 16. g3 {[%clk 0:02:19]} 16...
Qe7 {[%clk 0:02:11.6]} 17. Nh5 {[%clk 0:02:10.7]} 17... Kg8 {[%clk 0:01:51.5]}
18. Nxg7 {[%clk 0:02:10.6]} 18... Qxg7 {[%clk 0:01:51.8]} 19. Bd4 {[%clk
0:02:05.2]} 19... Qg6 {[%clk 0:01:44.3]} 20. f4 {[%clk 0:01:57.8]} 20... Nf7
{[%clk 0:01:34.5]} 21. Bh5 {[%clk 0:01:48.9]} 21... Qh6 {[%clk 0:01:34.4]} 22.
Re1 {[%clk 0:01:46.1]} 22... Be6 {[%clk 0:01:34]} 23. Bc3 {[%clk 0:01:41.7]}
23... c5 {[%clk 0:01:09]} 24. Bf3 {[%clk 0:01:33.8]} 24... Rad8 {[%clk 0:00:51]}
25. Bd5 {[%clk 0:01:20.5]} 25... Rfe8 {[%clk 0:00:50.4]} 26. Qf3 {[%clk
0:01:12.3]} 26... b5 {[%clk 0:00:45.1]} 27. b3 {[%clk 0:01:10.3]} 27... b4
{[%clk 0:00:41.9]} 28. Bb2 {[%clk 0:01:10.8]} 28... Qg6 {[%clk 0:00:31.8]} 29.
Rad1 {[%clk 0:01:03.2]} 29... h6 {[%clk 0:00:31.1]} 30. c4 {[%clk 0:00:59.3]}
30... Kh7 {[%clk 0:00:19.8]} 31. Ba1 {[%clk 0:00:50]} 31... h5 {[%clk
0:00:19.6]} 32. Bxe6 {[%clk 0:00:41.8]} 32... Rxe6 {[%clk 0:00:19.6]} 33. Rxe6
{[%clk 0:00:43.5]} 33... Qxe6 {[%clk 0:00:19.1]} 34. Qxh5+ {[%clk 0:00:45]}
34... Nh6 {[%clk 0:00:19.3]} 35. Qf3 {[%clk 0:00:21.4]} 35... Re8 {[%clk
0:00:15.8]} 36. Bb2 {[%clk 0:00:21.1]} 36... Ng4 {[%clk 0:00:16.1]} 37. h3
{[%clk 0:00:18.7]} 37... Nf6 {[%clk 0:00:11.1]} 38. Bc1 {[%clk 0:00:18.7]} 38...
Ne4 {[%clk 0:00:11.9]} 39. g4 {[%clk 0:00:19.4]} 39... Rg8 {[%clk 0:00:12.3]}
40. g5 {[%clk 0:00:20.5]} 40... Qg6 {[%clk 0:00:07]} 41. Bb2 {[%clk 0:00:20.2]}
41... Re8 {[%clk 0:00:07.2]} 42. Rd5 {[%clk 0:00:19.5]} 42... Nxg5 {[%clk
0:00:07.2]} 43. fxg5 {[%clk 0:00:20]} 43... Qxg5+ {[%clk 0:00:08.6]} 44. Qg2
{[%clk 0:00:21.4]} 44... Re1+ {[%clk 0:00:08.6]} 45. Kf2 {[%clk 0:00:21.7]}
45... Re2+ {[%clk 0:00:09.4]} 46. Kxe2 {[%clk 0:00:21.9]} 46... Qxg2+ {[%clk
0:00:11]} 47. Ke3 {[%clk 0:00:23.6]} 47... Qxb2 {[%clk 0:00:12.4]} 48. Kf4
{[%clk 0:00:24.9]} 48... Qf2+ {[%clk 0:00:12.6]} 49. Kg5 {[%clk 0:00:26]} 49...
f4 {[%clk 0:00:11.9]} 50. Rxd6 {[%clk 0:00:25.3]} 50... Qg3+ {[%clk 0:00:12.7]}
51. Kf5 {[%clk 0:00:24.5]} 51... f3 {[%clk 0:00:13.2]} 52. Rd7+ {[%clk 0:00:25]}
52... Kh6 {[%clk 0:00:13.5]} 53. Rxa7 {[%clk 0:00:24.3]} 53... f2 {[%clk
0:00:14.5]} 0-1

[Event "*** Titled Tuesday Blitz"]
[Site "Chess.com"]
[Date "2019.05.07"]
[Round "5"]
[White "xamax2000"]
[Black "spicycaterpillar"]
[Result "1/2-1/2"]
[WhiteElo "2637"]
[BlackElo "2822"]
[TimeControl "180+2"]
[EndTime "14:10:21 PDT"]
[Termination "Game drawn by repetition"]

1. e4 {[%clk 0:02:58.4]} 1... e5 {[%clk 0:02:22.5]} 2. Nf3 {[%clk 0:02:56.7]}
2... Nc6 {[%clk 0:02:22.7]} 3. Bb5 {[%clk 0:02:55.9]} 3... a6 {[%clk 0:02:22.7]}
4. Ba4 {[%clk 0:02:56.2]} 4... Nf6 {[%clk 0:02:23.3]} 5. O-O {[%clk 0:02:57.4]}
5... b5 {[%clk 0:02:21.8]} 6. Bb3 {[%clk 0:02:57.7]} 6... Bb7 {[%clk 0:02:23.4]}
7. d3 {[%clk 0:02:58.5]} 7... Be7 {[%clk 0:02:24.3]} 8. Bg5 {[%clk 0:02:41.2]}
8... O-O {[%clk 0:02:23]} 9. Nbd2 {[%clk 0:02:31]} 9... d6 {[%clk 0:02:22.7]}
10. c3 {[%clk 0:02:31.2]} 10... h6 {[%clk 0:02:05.9]} 11. Bh4 {[%clk 0:02:29.5]}
11... Kh8 {[%clk 0:01:39]} 12. d4 {[%clk 0:02:13]} 12... Nh7 {[%clk 0:01:22.4]}
13. Bg3 {[%clk 0:02:11.4]} 13... Ng5 {[%clk 0:01:02.7]} 14. Nxg5 {[%clk
0:01:26.3]} 14... Bxg5 {[%clk 0:01:03.3]} 15. Nf3 {[%clk 0:01:27.4]} 15... Bf6
{[%clk 0:01:04.6]} 16. Bd5 {[%clk 0:01:28.3]} 16... Qe7 {[%clk 0:00:57]} 17. a4
{[%clk 0:01:28]} 17... Rab8 {[%clk 0:00:38.2]} 18. Re1 {[%clk 0:01:21.2]} 18...
b4 {[%clk 0:00:33.5]} 19. Qd3 {[%clk 0:00:58.4]} 19... bxc3 {[%clk 0:00:27.1]}
20. bxc3 {[%clk 0:00:47.5]} 20... exd4 {[%clk 0:00:28.4]} 21. Bxc6 {[%clk
0:00:47.6]} 21... Bxc6 {[%clk 0:00:29]} 22. Nxd4 {[%clk 0:00:49.1]} 22... Bb7
{[%clk 0:00:19.2]} 23. Rab1 {[%clk 0:00:50.1]} 23... Rfe8 {[%clk 0:00:17.6]} 24.
f3 {[%clk 0:00:50.1]} 24... Qd7 {[%clk 0:00:16.7]} 25. Qc4 {[%clk 0:00:48]}
25... Kg8 {[%clk 0:00:16.1]} 26. a5 {[%clk 0:00:44]} 26... g6 {[%clk 0:00:06.1]}
27. Rb3 {[%clk 0:00:32.6]} 27... c5 {[%clk 0:00:04.8]} 28. Nc2 {[%clk
0:00:15.2]} 28... Bc6 {[%clk 0:00:02.9]} 29. Rb6 {[%clk 0:00:14.9]} 29... Rxb6
{[%clk 0:00:02.6]} 30. axb6 {[%clk 0:00:16.8]} 30... Qb7 {[%clk 0:00:03.7]} 31.
Rb1 {[%clk 0:00:15.3]} 31... Bb5 {[%clk 0:00:04.4]} 32. Qd5 {[%clk 0:00:08.5]}
32... Qxb6 {[%clk 0:00:05.7]} 33. Qxd6 {[%clk 0:00:10.4]} 33... Qxd6 {[%clk
0:00:06.2]} 34. Bxd6 {[%clk 0:00:12.3]} 34... Bd3 {[%clk 0:00:04.4]} 35. Rc1
{[%clk 0:00:12.2]} 35... Bxc3 {[%clk 0:00:04.8]} 36. Ne1 {[%clk 0:00:13.4]}
36... Bd4+ {[%clk 0:00:05.4]} 37. Kh1 {[%clk 0:00:13.7]} 37... Bb5 {[%clk
0:00:04.6]} 38. Nc2 {[%clk 0:00:13.9]} 38... Rd8 {[%clk 0:00:02.7]} 39. Be7
{[%clk 0:00:14.2]} 39... Rd7 {[%clk 0:00:03.8]} 40. Nxd4 {[%clk 0:00:15]} 40...
cxd4 {[%clk 0:00:05.7]} 41. Bf6 {[%clk 0:00:16.1]} 41... g5 {[%clk 0:00:06.7]}
42. g4 {[%clk 0:00:15.5]} 42... Kh7 {[%clk 0:00:05.9]} 43. e5 {[%clk 0:00:16.9]}
43... Be2 {[%clk 0:00:03.9]} 44. Kg2 {[%clk 0:00:16.5]} 44... h5 {[%clk
0:00:04]} 45. h3 {[%clk 0:00:16.5]} 45... hxg4 {[%clk 0:00:04.1]} 46. hxg4
{[%clk 0:00:18.4]} 46... d3 {[%clk 0:00:03.3]} 47. Rc8 {[%clk 0:00:19.6]} 47...
d2 {[%clk 0:00:03.8]} 48. Rh8+ {[%clk 0:00:20.9]} 48... Kg6 {[%clk 0:00:05.1]}
49. Rg8+ {[%clk 0:00:22.8]} 49... Kh7 {[%clk 0:00:05.9]} 50. Rh8+ {[%clk
0:00:24.7]} 50... Kg6 {[%clk 0:00:07.2]} 51. Rg8+ {[%clk 0:00:26.6]} 51... Kh7
{[%clk 0:00:08.5]} 52. Rh8+ {[%clk 0:00:28.5]} 52... Kg6 {[%clk 0:00:09.9]} 53.
Rg8+ {[%clk 0:00:25.4]} 53... Kh7 {[%clk 0:00:10.7]} 1/2-1/2

[Event "*** Titled Tuesday Blitz"]
[Site "Chess.com"]
[Date "2019.05.07"]
[Round "5"]
[White "AlexZambrano"]
[Black "checkmatequen"]
[Result "0-1"]
[WhiteElo "2220"]
[BlackElo "2201"]
[TimeControl "180+2"]
[EndTime "14:10:23 PDT"]
[Termination "checkmatequen won by checkmate"]

1. e4 {[%clk 0:02:59.7]} 1... c5 {[%clk 0:02:55.2]} 2. Nf3 {[%clk 0:03:00]} 2...
e6 {[%clk 0:02:56.1]} 3. d4 {[%clk 0:02:55.8]} 3... cxd4 {[%clk 0:02:58]} 4.
Nxd4 {[%clk 0:02:57.1]} 4... a6 {[%clk 0:02:59.2]} 5. Bd3 {[%clk 0:02:58.2]}
5... Qc7 {[%clk 0:02:58.9]} 6. c4 {[%clk 0:02:58.3]} 6... d6 {[%clk 0:02:56.1]}
7. O-O {[%clk 0:02:58.5]} 7... Nf6 {[%clk 0:02:57.4]} 8. Nc3 {[%clk 0:02:59.4]}
8... Nbd7 {[%clk 0:02:58.6]} 9. Kh1 {[%clk 0:03:00.4]} 9... g6 {[%clk
0:02:59.9]} 10. f4 {[%clk 0:02:57.1]} 10... Bg7 {[%clk 0:03:01.2]} 11. Be3
{[%clk 0:02:56.6]} 11... O-O {[%clk 0:03:01.9]} 12. f5 {[%clk 0:02:57.7]} 12...
Nc5 {[%clk 0:02:47.7]} 13. Bc2 {[%clk 0:02:32.3]} 13... Re8 {[%clk 0:02:35.1]}
14. fxg6 {[%clk 0:02:31.1]} 14... fxg6 {[%clk 0:02:35.4]} 15. Nb3 {[%clk
0:02:18.4]} 15... Nxb3 {[%clk 0:02:32.1]} 16. axb3 {[%clk 0:02:18.6]} 16... Bd7
{[%clk 0:02:27.9]} 17. Bg5 {[%clk 0:02:13.5]} 17... Rf8 {[%clk 0:02:27.2]} 18.
Qe2 {[%clk 0:02:02]} 18... Bc6 {[%clk 0:02:21.3]} 19. Rad1 {[%clk 0:02:02.3]}
19... Rae8 {[%clk 0:01:56.2]} 20. b4 {[%clk 0:02:02.6]} 20... b6 {[%clk
0:01:48.1]} 21. b5 {[%clk 0:01:31.8]} 21... Bb7 {[%clk 0:01:47]} 22. h3 {[%clk
0:01:29.7]} 22... Nh5 {[%clk 0:01:32]} 23. Bh4 {[%clk 0:01:12.8]} 23... Bf6
{[%clk 0:01:25.9]} 24. Bf2 {[%clk 0:01:08.3]} 24... Be5 {[%clk 0:01:19.1]} 25.
Kg1 {[%clk 0:00:43.6]} 25... Bg3 {[%clk 0:01:03.1]} 26. Be3 {[%clk 0:00:36.9]}
26... Qe7 {[%clk 0:00:42.7]} 27. Bxb6 {[%clk 0:00:32.5]} 27... Qh4 {[%clk
0:00:39.3]} 28. Qg4 {[%clk 0:00:29.2]} 28... Qe7 {[%clk 0:00:27.7]} 29. Be3
{[%clk 0:00:24.6]} 29... axb5 {[%clk 0:00:23.6]} 30. cxb5 {[%clk 0:00:25.4]}
30... e5 {[%clk 0:00:20.4]} 31. Bb3+ {[%clk 0:00:24.5]} 31... Kh8 {[%clk
0:00:20.5]} 32. Nd5 {[%clk 0:00:24.3]} 32... Bxd5 {[%clk 0:00:21.3]} 33. Bxd5
{[%clk 0:00:25.3]} 33... Bf4 {[%clk 0:00:22.4]} 34. Bf2 {[%clk 0:00:22.9]} 34...
Rc8 {[%clk 0:00:22.3]} 35. b6 {[%clk 0:00:23.1]} 35... Rc2 {[%clk 0:00:22.6]}
36. b7 {[%clk 0:00:24.4]} 36... Rxb2 {[%clk 0:00:23.3]} 37. Rb1 {[%clk
0:00:24.7]} 37... Rxb1 {[%clk 0:00:22.1]} 38. Rxb1 {[%clk 0:00:25.4]} 38... Nf6
{[%clk 0:00:18.9]} 39. Qd1 {[%clk 0:00:22.9]} 39... Qc7 {[%clk 0:00:18.6]} 40.
Ba7 {[%clk 0:00:21.4]} 40... Nxd5 {[%clk 0:00:17]} 41. Qxd5 {[%clk 0:00:22.6]}
41... Qc2 {[%clk 0:00:14.9]} 42. b8=Q {[%clk 0:00:20.3]} 42... Rxb8 {[%clk
0:00:15.1]} 43. Rxb8+ {[%clk 0:00:21.5]} 43... Kg7 {[%clk 0:00:16.6]} 44. Rb7+
{[%clk 0:00:20.4]} 44... Kh6 {[%clk 0:00:17.3]} 45. Kh1 {[%clk 0:00:18]} 45...
Qc1+ {[%clk 0:00:16]} 46. Bg1 {[%clk 0:00:18.9]} 46... Be3 {[%clk 0:00:16.9]}
47. Kh2 {[%clk 0:00:18.7]} 47... Bxg1+ {[%clk 0:00:13.1]} 48. Kg3 {[%clk
0:00:19.9]} 48... Qf4# {[%clk 0:00:12.8]} 0-1

[Event "*** Titled Tuesday Blitz"]
[Site "Chess.com"]
[Date "2019.05.07"]
[Round "5"]
[White "TheBigBadChessDad"]
[Black "MathiasWomacka"]
[Result "1/2-1/2"]
[WhiteElo "2315"]
[BlackElo "2236"]
[TimeControl "180+2"]
[EndTime "14:10:27 PDT"]
[Termination "Game drawn by agreement"]

1. d4 {[%clk 0:03:01.9]} 1... Nf6 {[%clk 0:03:00.1]} 2. Nf3 {[%clk 0:03:02.7]}
2... e6 {[%clk 0:03:02]} 3. Bf4 {[%clk 0:03:03.2]} 3... c5 {[%clk 0:03:00.3]} 4.
e3 {[%clk 0:03:04.1]} 4... Qb6 {[%clk 0:03:00.2]} 5. b3 {[%clk 0:03:01]} 5...
Nc6 {[%clk 0:03:00.1]} 6. Bd3 {[%clk 0:02:55.7]} 6... cxd4 {[%clk 0:02:59]} 7.
exd4 {[%clk 0:02:54.9]} 7... Nxd4 {[%clk 0:02:54.8]} 8. Be5 {[%clk 0:02:34.6]}
8... Nxf3+ {[%clk 0:02:45.8]} 9. Qxf3 {[%clk 0:02:35.4]} 9... Be7 {[%clk
0:02:47.3]} 10. c4 {[%clk 0:02:19.8]} 10... d6 {[%clk 0:02:40.9]} 11. Bb2 {[%clk
0:02:09.6]} 11... Bd7 {[%clk 0:02:36.5]} 12. O-O {[%clk 0:02:09.2]} 12... Bc6
{[%clk 0:02:34.9]} 13. Qg3 {[%clk 0:02:08.6]} 13... O-O {[%clk 0:02:31.9]} 14.
Nc3 {[%clk 0:02:06.2]} 14... Rfd8 {[%clk 0:02:21.7]} 15. Rad1 {[%clk 0:02:05.9]}
15... d5 {[%clk 0:02:16]} 16. cxd5 {[%clk 0:02:00.8]} 16... Bxd5 {[%clk
0:02:17]} 17. Nxd5 {[%clk 0:01:59.6]} 17... Rxd5 {[%clk 0:02:18.2]} 18. Be4
{[%clk 0:01:55.9]} 18... Rxd1 {[%clk 0:01:57.3]} 19. Rxd1 {[%clk 0:01:56.4]}
19... Rd8 {[%clk 0:01:58.8]} 20. Rxd8+ {[%clk 0:01:37.7]} 20... Qxd8 {[%clk
0:02:00.7]} 21. h3 {[%clk 0:01:26]} 21... Qd1+ {[%clk 0:01:27]} 22. Kh2 {[%clk
0:01:26.6]} 22... Bd6 {[%clk 0:01:27.2]} 23. Be5 {[%clk 0:01:27.5]} 23... Bxe5
{[%clk 0:01:16.3]} 24. Qxe5 {[%clk 0:01:28.4]} 24... Qd7 {[%clk 0:00:20.9]} 25.
Qb8+ {[%clk 0:01:28]} 25... Ne8 {[%clk 0:00:20.6]} 26. Qxa7 {[%clk 0:01:23.4]}
26... f5 {[%clk 0:00:17.6]} 27. Bxb7 {[%clk 0:01:16.8]} 27... Nd6 {[%clk
0:00:18]} 28. Qb8+ {[%clk 0:01:09.1]} 28... Kf7 {[%clk 0:00:19.3]} 29. Bf3
{[%clk 0:01:09.3]} 29... e5 {[%clk 0:00:20.2]} 30. Bd5+ {[%clk 0:01:08.2]} 30...
Kg6 {[%clk 0:00:18.3]} 31. Qg8 {[%clk 0:00:55.9]} 31... e4 {[%clk 0:00:17.5]}
32. Qe6+ {[%clk 0:00:55.8]} 32... Qxe6 {[%clk 0:00:18.5]} 33. Bxe6 {[%clk
0:00:57.7]} 33... Kf6 {[%clk 0:00:20.1]} 34. Bg8 {[%clk 0:00:55]} 34... h6
{[%clk 0:00:18.4]} 35. Kg1 {[%clk 0:00:51.6]} 35... Ke5 {[%clk 0:00:18.9]} 36.
Kf1 {[%clk 0:00:43.5]} 36... f4 {[%clk 0:00:18.7]} 37. Ke2 {[%clk 0:00:43.5]}
37... Kd4 {[%clk 0:00:19.8]} 38. b4 {[%clk 0:00:34.8]} 38... Kc3 {[%clk
0:00:16.6]} 39. a3 {[%clk 0:00:30.4]} 39... Nb5 {[%clk 0:00:17.2]} 40. Bd5
{[%clk 0:00:27.2]} 40... Kd4 {[%clk 0:00:13.3]} 41. Bc6 {[%clk 0:00:27.2]} 41...
Nxa3 {[%clk 0:00:14.1]} 42. b5 {[%clk 0:00:28.5]} 42... Nc4 {[%clk 0:00:14.1]}
43. g3 {[%clk 0:00:27.2]} 43... g5 {[%clk 0:00:13.6]} 44. h4 {[%clk 0:00:27.8]}
44... e3 {[%clk 0:00:07.3]} 45. gxf4 {[%clk 0:00:25.4]} 45... gxf4 {[%clk
0:00:07.9]} 46. fxe3+ {[%clk 0:00:26.1]} 46... fxe3 {[%clk 0:00:09]} 47. h5
{[%clk 0:00:24]} 47... Kc5 {[%clk 0:00:09.2]} 48. Kd3 {[%clk 0:00:21.3]} 48...
Ne5+ {[%clk 0:00:09.2]} 49. Kxe3 {[%clk 0:00:22.5]} 49... Nxc6 {[%clk
0:00:11.1]} 50. bxc6 {[%clk 0:00:23.6]} 50... Kxc6 {[%clk 0:00:12.2]} 51. Ke4
{[%clk 0:00:25.2]} 51... Kd6 {[%clk 0:00:13.3]} 52. Kf5 {[%clk 0:00:26.7]} 52...
Ke7 {[%clk 0:00:14.9]} 53. Kg6 {[%clk 0:00:28]} 53... Kf8 {[%clk 0:00:16.4]} 54.
Kh7 {[%clk 0:00:29.1]} 54... Kf7 {[%clk 0:00:17.1]} 55. Kxh6 {[%clk 0:00:28.5]}
55... Kg8 {[%clk 0:00:17.7]} 1/2-1/2